bitfinex/quotes_ETHUSD_20250214
["timestamp","ask_amount","ask_price","bid_price","bid_amount"]
[1739537621715,0.8309,2685.8,2685.4,0.74270596]
[1739537621979,0.8309,2685.8,2685.4,4.46651596]
[1739537622118,6.1509,2686.0,2685.6,3.72355]
[1739537622325,6.1509,2686.0,2685.6,4.53835]
[1739537622749,5.32,2686.0,2685.7,3.72336]
[1739537622960,5.32,2686.0,2685.6,8.26182]
[1739537623181,5.32,2686.0,2685.6,9.25501596]
[1739537623377,5.32,2686.0,2685.6,5.53146596]
[1739537624978,5.32,2686.0,2685.7,3.72334]
[1739537625190,0.8309,2686.2,2685.8,3.72323]
[1739537625618,0.7838,2686.4,2685.6,1.80799596]
[1739537625891,3.72232,2686.5,2686.0,3.72288]
[1739537627541,3.72232,2686.5,2685.9,7.4462]
[1739537627895,3.72232,2686.5,2685.9,3.72306]
[1739537628029,3.72238,2686.5,2686.2,0.72906417]
[1739537628226,7.44479,2686.5,2686.2,0.72906417]
[1739537628670,3.72238,2686.5,2686.2,0.72906417]
[1739537629054,6.1038,2686.9,2686.4,3.72245]
[1739537629240,9.82558,2686.9,2686.4,3.72245]
[1739537629444,13.54742,2686.9,2686.4,3.72245]
[1739537629869,3.72191,2686.8,2686.3,4.53416]
[1739537631591,0.7838,2686.9,2686.5,3.72231]
[1739537632737,4.50562,2686.9,2686.4,3.72244]
[1739537633274,4.50562,2686.9,2686.4,3.72238]
[1739537633579,4.50562,2686.9,2686.5,3.72229]
[1739537634182,4.50562,2686.9,2686.4,3.72237]
[1739537634490,0.7838,2686.9,2686.4,1.04008796]
[1739537634790,0.7838,2686.9,2686.5,3.7222]
[1739537634941,4.50557,2686.9,2686.5,3.7222]
[1739537637784,4.50557,2686.9,2686.4,3.72244]
[1739537639140,0.7838,2686.9,2686.5,3.7222]
[1739537639341,0.7838,2686.9,2686.4,3.72245]
[1739537639541,0.7838,2686.9,2686.5,0.550406]
[1739537639740,0.7838,2686.9,2686.5,4.272616]
[1739537640174,0.7838,2686.9,2686.5,0.550406]
[1739537640380,4.50558,2686.9,2686.5,0.550406]
[1739537641385,0.7838,2686.9,2686.5,0.550406]
[1739537641570,0.7838,2686.9,2686.5,4.272646]
[1739537642458,3.72198,2686.8,2686.3,1.78160996]
[1739537642662,0.7658,2686.5,2686.2,0.72906417]
[1739537643038,4.48812,2686.5,2686.2,0.72906417]
[1739537643545,0.7658,2686.5,2686.2,0.72906417]
[1739537643746,0.7658,2686.5,2686.2,4.45178417]
[1739537644891,0.8126,2686.7,2686.2,0.72906417]
[1739537645590,4.53472,2686.7,2686.2,4.45174417]
[1739537645792,3.72219,2686.6,2686.2,0.72906417]
[1739537647125,3.72219,2686.6,2686.2,4.45178417]
[1739537647327,3.72219,2686.6,2686.2,0.72906417]
[1739537647890,3.72219,2686.6,2686.2,4.45177417]
[1739537648076,0.8126,2686.7,2686.2,0.72906417]
[1739537648275,4.5347,2686.7,2686.2,4.45178417]
[1739537650340,5.32,2686.9,2686.5,3.72227]
[1739537650473,5.32,2686.9,2686.3,0.7712]
[1739537650680,9.04177,2686.9,2686.4,3.72234]
[1739537650878,0.7775,2686.7,2686.3,3.72257]
[1739537651178,3.72227,2686.6,2686.2,0.72906417]
[1739537651402,3.72217,2686.6,2686.2,0.72906417]
[1739537651616,7.44445,2686.6,2686.2,0.72906417]
[1739537651821,3.72217,2686.6,2686.2,0.72906417]
[1739537652030,7.44446,2686.6,2686.2,0.72906417]
[1739537652355,0.7775,2686.2,2685.8,3.72322]
[1739537652491,0.7775,2686.2,2685.8,3.99222]
[1739537652965,0.7775,2686.2,2685.8,3.72322]
[1739537653614,4.50023,2686.2,2685.7,3.269]
[1739537653803,4.50023,2686.2,2685.7,6.99234]
[1739537654007,4.50023,2686.2,2685.8,1.071579]
[1739537654206,4.50023,2686.2,2686.0,0.74022465]
[1739537654408,0.7775,2686.2,2686.0,0.74022465]
[1739537656995,4.50023,2686.2,2686.0,0.74022465]
[1739537657195,0.7775,2686.2,2686.0,0.74022465]
[1739537657816,0.7775,2686.2,2686.0,4.46315465]
[1739537658017,0.7775,2686.2,2686.0,1.18654011]
[1739537658463,0.7775,2686.4,2686.0,1.18654011]
[1739537658821,4.49997,2686.4,2686.0,1.18654011]
[1739537659018,0.7775,2686.4,2686.0,1.18654011]
[1739537659218,9.81977,2686.6,2686.1,3.7228]
[1739537659473,9.81977,2686.6,2686.2,3.7227]
[1739537659819,5.32,2686.6,2686.4,3.72238]
[1739537660019,0.7535,2687.0,2686.4,0.0075]
[1739537660463,0.7535,2687.0,2686.7,3.72196]
[1739537661163,0.7535,2687.0,2686.6,3.72215]
[1739537661460,0.7535,2687.0,2686.7,0.744446]
[1739537662312,0.7535,2687.0,2686.6,3.72215]
[1739537663459,0.7535,2687.0,2686.5,7.44454]
[1739537663757,0.7535,2687.0,2686.6,3.72214]
[1739537664118,0.7535,2687.0,2686.5,3.72223]
[1739537664318,0.7535,2687.0,2686.6,3.72208]
[1739537664518,0.7535,2687.0,2686.7,1.4998693]
[1739537667890,9.04102,2687.5,2686.8,0.7985]
[1739537668102,0.7535,2687.2,2686.9,3.72169]
[1739537668429,0.7535,2687.2,2686.8,4.52039]
[1739537668846,0.7535,2687.2,2686.8,0.7985]
[1739537669405,0.7535,2687.2,2686.8,1.79962693]
[1739537669547,4.47494,2687.2,2686.8,1.00112693]
[1739537670684,4.47491,2687.2,2686.8,1.00112693]
[1739537676234,4.47491,2687.2,2686.7,4.4773683]
[1739537677322,4.47491,2687.2,2686.7,0.7554383]
[1739537677323,3.72156,2687.1,2686.7,0.7554383]
[1739537677619,3.72156,2687.1,2686.7,4.4774583]
[1739537678620,3.72156,2687.1,2686.7,0.7554383]
[1739537679630,0.766,2686.8,2686.4,0.7692]
[1739537679760,3.72207,2686.7,2686.2,3.99171]
[1739537679964,3.72207,2686.7,2686.3,4.664964]
[1739537680267,3.72207,2686.7,2686.3,0.942404]
[1739537680666,3.72233,2686.5,2686.1,0.269]
[1739537680930,0.766,2686.4,2686.1,0.269]
[1739537681223,4.48847,2686.4,2686.1,0.269]
[1739537681518,0.766,2686.4,2686.1,0.269]
[1739537682238,0.766,2686.4,2686.2,0.75408162]
[1739537682374,5.32,2686.6,2686.3,0.47458216]
[1739537683426,5.32,2686.6,2686.2,0.75408162]
[1739537683587,5.32,2686.6,2686.2,4.47668162]
[1739537684535,4.48806,2686.7,2686.2,4.47668162]
[1739537687032,3.72218,2686.6,2686.2,0.75408162]
[1739537687663,0.766,2686.7,2686.2,4.47674162]
[1739537687862,0.766,2686.7,2686.4,3.72245]
[1739537688144,4.48791,2686.8,2686.4,3.72245]
[1739537688332,4.48791,2686.8,2686.3,5.33864016]
[1739537688709,0.766,2686.8,2686.3,1.61606016]
[1739537688910,0.766,2686.8,2686.4,3.72244]
[1739537689112,4.48772,2687.0,2686.4,3.72244]
[1739537689457,3.72191,2686.8,2686.3,0.7692]
[1739537689665,3.72204,2686.7,2686.3,4.49178]
[1739537690451,3.72192,2686.8,2686.4,3.72243]
[1739537690626,3.72192,2686.8,2686.3,0.7692]
[1739537690819,3.72192,2686.8,2686.3,4.49176]
[1739537691019,3.72192,2686.8,2686.3,5.41552016]
[1739537692350,7.44392,2686.8,2686.3,4.64632016]
[1739537692842,3.72192,2686.8,2686.3,4.64632016]
[1739537694054,7.44392,2686.8,2686.3,4.64632016]
[1739537694255,7.4439,2686.8,2686.3,4.64632016]
[1739537694403,3.72203,2686.7,2686.3,4.64632016]
[1739537695143,3.72192,2686.8,2686.3,4.64632016]
[1739537695996,7.4439,2686.8,2686.3,4.64632016]
[1739537696340,3.72192,2686.8,2686.3,4.64632016]
[1739537696545,7.44392,2686.8,2686.3,4.64632016]
[1739537697465,3.72192,2686.8,2686.3,4.64632016]
[1739537698177,3.72192,2686.8,2686.3,4.64628016]
[1739537699324,7.44391,2686.8,2686.3,4.64628016]
[1739537699521,3.72192,2686.8,2686.3,4.64628016]
[1739537699720,7.44391,2686.8,2686.3,4.64628016]
[1739537700652,3.72213,2686.7,2686.3,0.92376016]
[1739537700857,0.7609,2686.6,2686.3,0.92376016]
[1739537701438,4.48309,2686.6,2686.3,0.92376016]
[1739537701657,0.7609,2686.6,2686.3,0.92376016]
[1739537703045,0.7609,2686.6,2686.2,4.47680162]
[1739537703545,0.7609,2686.6,2686.3,3.72251]
[1739537705953,0.7609,2686.6,2686.2,0.75408162]
[1739537705954,0.7577,2686.5,2686.2,0.75408162]
[1739537706134,0.7577,2685.7,2685.2,0.7999]
[1739537706304,3.72358,2685.6,2685.2,0.7999]
[1739537707965,3.72358,2685.6,2685.3,0.452409]
[1739537708140,0.7577,2685.7,2685.2,0.73886412]
[1739537708343,3.72356,2685.6,2685.2,0.73886412]
[1739537709899,3.7237,2685.5,2685.2,0.73886412]
[1739537714182,3.72364,2685.6,2685.2,0.73886412]
[1739537714611,3.72372,2685.5,2685.2,0.73886412]
[1739537714756,7.4475,2685.5,2685.2,0.73886412]
[1739537714958,3.72372,2685.5,2685.2,0.73886412]
[1739537715802,3.72391,2685.4,2685.2,0.73886412]
[1739537722207,3.72383,2685.5,2685.2,0.73886412]
[1739537722402,3.72359,2685.6,2685.2,0.73886412]
[1739537722592,3.7237,2685.5,2685.2,0.73886412]
[1739537722768,3.72384,2685.4,2685.2,0.73886412]
[1739537724203,3.72359,2685.6,2685.2,0.73886412]
[1739537724508,0.7577,2685.7,2685.2,0.73886412]
[1739537724671,3.72339,2685.8,2685.3,1.24101141]
[1739537725008,3.72349,2685.7,2685.3,1.24101141]
[1739537726708,0.8092,2685.9,2685.2,4.46291412]
[1739537726709,3.72372,2685.5,2685.2,0.73886412]
[1739537726859,3.72399,2685.3,2684.8,4.48757]
[1739537727207,3.72433,2685.1,2684.8,0.75722054]
[1739537727783,0.7768,2684.9,2684.5,0.7629]
[1739537727981,0.7768,2684.9,2684.5,1.238619]
[1739537728186,3.72441,2685.0,2684.6,0.72971371]
[1739537728899,3.7242,2685.2,2684.6,0.72971371]
[1739537729214,3.7242,2685.2,2684.7,3.72473]
[1739537729633,3.72436,2685.1,2684.6,0.72971371]
[1739537729759,3.72436,2685.1,2684.6,1.29904698]
[1739537730725,3.7244,2685.0,2684.6,1.29904698]
[1739537730862,3.72467,2684.8,2684.6,0.72971371]
[1739537731609,3.72467,2684.8,2684.4,3.0]
[1739537731824,7.44947,2684.8,2684.3,4.48818]
[1739537732025,3.72477,2684.8,2684.3,0.7629]
[1739537732535,3.72488,2684.7,2684.3,0.7629]
[1739537732971,3.72488,2684.7,2684.4,0.73513238]
[1739537733525,0.822645,2684.7,2684.1,0.7629]
[1739537733726,3.72515,2684.5,2684.1,0.7629]
[1739537734325,3.72526,2684.4,2683.9,4.48873]
[1739537734466,3.72526,2684.4,2684.0,0.73833833]
[1739537735320,3.72515,2684.5,2684.0,0.73833833]
[1739537735526,3.72523,2684.4,2684.0,0.73833833]
[1739537735675,3.72523,2684.4,2684.0,1.14563378]
[1739537736430,4.50185,2684.6,2684.0,1.14563378]
[1739537736732,3.72526,2684.4,2684.0,1.14563378]
[1739537737669,3.72526,2684.4,2684.0,0.73833833]
[1739537738518,3.72545,2684.3,2684.0,0.73833833]
[1739537738906,0.8058,2684.2,2684.0,0.73833833]
[1739537739104,4.53139,2684.2,2684.0,0.73833833]
[1739537743784,3.72528,2684.4,2684.0,0.73833833]
[1739537744482,3.72537,2684.3,2684.0,0.73833833]
[1739537744730,0.8058,2684.5,2684.0,0.73833833]
[1739537744731,4.53096,2684.5,2684.0,5.21043616]
[1739537745029,4.53096,2684.5,2684.1,0.8089]
[1739537745243,0.8058,2684.5,2684.1,0.8089]
[1739537745516,3.72506,2684.6,2684.1,4.53445]
[1739537745729,3.72506,2684.6,2684.1,5.50893562]
[1739537745872,0.7987,2684.8,2684.3,3.72529]
[1739537746081,0.7987,2684.8,2684.3,3.72535]
[1739537746082,3.72481,2684.7,2684.3,3.72535]
[1739537746317,3.72481,2684.7,2684.2,3.72542]
[1739537746488,3.72481,2684.7,2684.3,0.55088056]
[1739537747407,0.7987,2684.8,2684.3,0.55088056]
[1739537747606,3.72483,2684.7,2684.3,0.55088056]
[1739537748607,3.72495,2684.6,2684.2,3.72537]
[1739537748740,3.72483,2684.7,2684.2,3.72537]
[1739537749936,3.72497,2684.6,2684.1,0.8089]
[1739537750137,3.72497,2684.6,2684.1,4.53454]
[1739537751195,3.72483,2684.7,2684.2,3.72542]
[1739537752006,3.72483,2684.7,2684.2,7.45084]
[1739537752157,3.72483,2684.7,2684.2,8.42528962]
[1739537752362,3.72483,2684.7,2684.3,0.8308]
[1739537754195,7.44975,2684.7,2684.3,0.8308]
[1739537754799,3.72483,2684.7,2684.3,0.8308]
[1739537755155,3.72495,2684.6,2684.3,0.8308]
[1739537755395,3.72483,2684.7,2684.3,0.8308]
[1739537756000,3.72499,2684.6,2684.3,0.8308]
[1739537757210,3.72481,2684.7,2684.3,0.8308]
[1739537758648,3.72463,2684.9,2684.3,0.8308]
[1739537758818,6.1006,2685.0,2684.5,3.72495]
[1739537758962,5.32,2685.0,2684.5,3.72495]
[1739537759163,3.72482,2684.7,2684.4,0.8308]
[1739537759366,3.72468,2684.8,2684.4,0.8308]
[1739537759608,4.50528,2684.8,2684.5,0.76287268]
[1739537759923,3.72482,2684.7,2684.5,0.76287268]
[1739537760102,4.50528,2684.8,2684.5,0.76287268]
[1739537760262,9.04445,2685.0,2684.5,4.48789268]
[1739537760466,3.72454,2684.9,2684.5,0.76287268]
[1739537760700,3.72475,2684.8,2684.5,0.76287268]
[1739537761066,4.50542,2684.7,2684.2,0.8308]
[1739537761287,3.7251,2684.5,2684.3,0.73446348]
[1739537761718,3.72495,2684.6,2684.3,0.73446348]
[1739537761857,0.7806,2684.7,2684.3,4.45981348]
[1739537762053,3.72495,2684.6,2684.3,0.73446348]
[1739537762886,4.50544,2684.7,2684.3,0.73446348]
[1739537763102,3.72501,2684.6,2684.3,0.73446348]
[1739537763423,3.72514,2684.5,2684.3,0.73446348]
[1739537763743,3.72494,2684.6,2684.3,0.73446348]
[1739537764247,3.72494,2684.6,2684.3,0.73446348]
[1739537765340,3.72511,2684.5,2684.0,5.30298783]
[1739537765643,3.72494,2684.6,2684.0,1.57721783]
[1739537765842,7.44999,2684.6,2684.1,3.72561]
[1739537766013,3.72518,2684.5,2684.0,1.57721783]
[1739537766221,3.72524,2684.4,2684.0,2.06058978]
[1739537766430,3.72494,2684.6,2684.0,2.06058978]
[1739537766745,3.72497,2684.6,2684.1,3.72557]
[1739537767129,3.72523,2684.4,2684.0,5.06058978]
[1739537767499,3.72497,2684.6,2684.0,5.78634978]
[1739537767850,3.72509,2684.5,2684.2,0.72921016]
[1739537768203,9.04497,2684.6,2684.2,0.72921016]
[1739537768403,3.72515,2684.5,2684.2,0.72921016]
[1739537768955,9.04497,2684.6,2684.2,0.72921016]
[1739537769150,9.04497,2684.6,2684.3,0.7694]
[1739537769151,5.32,2684.6,2684.3,0.7694]
[1739537769314,5.32,2684.6,2684.4,4.24763002]
[1739537770521,5.32,2684.6,2684.5,3.72508]
[1739537770920,5.32,2684.6,2684.5,4.49448]
[1739537771871,5.32,2684.6,2684.5,7.49448]
[1739537772102,5.32,2685.4,2685.0,4.49369]
[1739537772251,0.796,2685.5,2685.1,3.72424]
[1739537772570,5.32,2685.6,2685.1,3.72424]
[1739537772872,9.04356,2685.6,2685.1,3.72424]
[1739537773173,5.32,2685.6,2685.0,4.49379]
[1739537773361,9.04365,2685.6,2685.0,4.49379]
[1739537774074,5.32,2685.6,2685.0,4.49379]
[1739537774257,3.7237,2685.5,2685.0,4.49379]
[1739537775205,9.04358,2685.6,2685.1,3.72413]
[1739537775350,9.04358,2685.6,2684.9,3.72449]
[1739537775351,3.72408,2685.3,2684.8,3.72467]
[1739537776484,3.72415,2685.2,2684.7,3.7248]
[1739537777369,3.72415,2685.2,2684.8,0.72928473]
[1739537777765,4.52027,2685.1,2684.8,0.72928473]
[1739537778158,8.24464,2685.1,2684.8,0.72928473]
[1739537778498,4.52027,2685.1,2684.8,0.72928473]
[1739537779050,8.24461,2685.1,2684.8,0.72928473]
[1739537779250,4.52027,2685.1,2684.8,0.72928473]
[1739537779458,4.52069,2684.8,2684.4,0.269]
[1739537779680,0.796,2684.8,2684.4,3.9942]
[1739537781603,0.796,2684.8,2684.5,0.76171023]
[1739537782059,5.32,2685.0,2684.7,3.72474]
[1739537783199,5.32,2685.0,2684.9,4.48483]
[1739537783360,0.8322,2685.4,2685.0,3.72432]
[1739537783555,3.72376,2685.5,2685.1,3.72424]
[1739537783786,3.72376,2685.5,2685.0,3.72432]
[1739537784006,4.55576,2685.6,2685.0,3.72432]
[1739537784176,3.72356,2685.6,2685.1,3.72416]
[1739537784377,3.72356,2685.6,2685.1,4.6271329]
[1739537785077,3.72356,2685.6,2685.1,4.6272229]
[1739537785309,3.72386,2685.4,2685.0,3.72431]
[1739537785668,3.72386,2685.4,2685.1,0.73131362]
[1739537788919,0.8322,2685.5,2685.1,0.73131362]
[1739537789221,4.55591,2685.5,2685.1,0.73131362]
[1739537789382,4.5559,2685.5,2685.1,0.73131362]
[1739537789577,4.5559,2685.5,2684.9,0.7603]
[1739537789578,0.8322,2685.2,2684.9,0.269]
[1739537789783,3.72426,2685.1,2684.7,1.0293]
[1739537790222,0.8322,2685.2,2684.7,1.0293]
[1739537790223,4.55632,2685.2,2684.7,1.0293]
[1739537790428,4.55632,2685.2,2684.7,4.75409]
[1739537790787,0.8322,2685.2,2684.9,0.73496683]
[1739537792133,3.72429,2685.1,2684.9,0.73496683]
[1739537793527,3.72439,2685.0,2684.7,1.0293]
[1739537793863,3.72439,2685.0,2684.2,0.7603]
[1739537793864,3.72482,2684.7,2684.2,0.7603]
[1739537794069,3.72496,2684.6,2684.2,0.7603]
[1739537794217,3.72496,2684.6,2684.2,1.0293]
[1739537794420,3.72496,2684.6,2684.4,0.7420164]
[1739537796734,3.72508,2684.5,2684.1,0.269]
[1739537796915,3.72496,2684.6,2684.1,1.421081]
[1739537797115,4.55696,2684.8,2684.3,0.76110172]
[1739537797116,3.72487,2684.7,2684.3,0.76110172]
[1739537797418,3.72504,2684.6,2684.3,0.76110172]
[1739537798534,9.04481,2684.7,2684.3,0.76110172]
[1739537799054,3.72495,2684.6,2684.3,0.76110172]
[1739537801073,9.04485,2684.7,2684.3,0.76110172]
[1739537801376,5.32,2684.7,2684.4,3.7252]
[1739537801539,5.32,2684.7,2684.5,4.52527]
[1739537801745,5.32,2684.7,2684.6,3.72494]
[1739537802143,5.32,2685.4,2684.9,3.72443]
[1739537802372,5.32,2685.4,2684.9,7.44887]
[1739537802691,5.32,2685.4,2685.1,3.72418]
[1739537802830,6.0943,2685.6,2685.1,4.52438]
[1739537803268,9.81788,2685.6,2685.1,4.52438]
[1739537804735,6.0943,2685.6,2685.1,4.52438]
[1739537805346,9.81789,2685.6,2685.1,4.52438]
[1739537806591,6.0943,2685.6,2685.2,4.47467508]
[1739537806792,0.7743,2685.8,2685.3,3.72397]
[1739537807090,4.49765,2685.8,2685.3,3.72397]
[1739537808904,4.49765,2685.8,2685.3,7.44787]
[1739537809107,4.49765,2685.8,2685.3,3.7239]
[1739537809398,4.49765,2685.8,2685.3,4.62064239]
[1739537809583,0.7743,2685.8,2685.4,3.72382]
[1739537809782,0.7743,2685.8,2685.4,3.72371]
[1739537810108,0.7743,2685.8,2685.3,4.62064239]
[1739537810313,4.49759,2685.8,2685.3,4.62064239]
[1739537810489,4.49759,2685.8,2685.4,0.53712175]
[1739537811004,4.49758,2685.8,2685.4,0.53712175]
[1739537812499,4.49758,2685.8,2685.4,3.72382]
[1739537813097,4.50477,2686.1,2685.6,3.72355]
[1739537813597,0.7819,2686.1,2685.7,3.72341]
[1739537814097,3.72282,2686.2,2685.7,3.72341]
[1739537814401,7.44567,2686.2,2685.7,3.72341]
[1739537814554,3.72273,2686.2,2685.5,4.5528]
[1739537814754,3.72296,2686.1,2685.5,5.380467]
[1739537815084,3.72296,2686.1,2685.6,3.72354]
[1739537815487,3.72301,2686.0,2685.5,5.380457]
[1739537816078,3.72273,2686.2,2685.7,3.72338]
[1739537817812,9.82456,2686.3,2685.9,0.8292]
[1739537817998,9.82456,2686.3,2685.9,1.284446]
[1739537818198,6.1019,2686.3,2685.9,5.007576]
[1739537818560,9.8245,2686.3,2685.9,4.55233]
[1739537819066,9.8245,2686.3,2685.9,0.8292]
[1739537819806,0.7819,2686.5,2685.9,4.55225]
[1739537819963,0.7819,2686.5,2686.1,3.72286]
[1739537820373,5.32,2686.6,2686.1,3.72276]
[1739537820715,5.32,2686.6,2686.2,0.372276]
[1739537820872,9.04214,2686.7,2686.2,0.372276]
[1739537821210,3.72218,2686.6,2686.2,0.372276]
[1739537821601,3.72217,2686.6,2686.2,0.372276]
[1739537823218,7.44443,2686.6,2686.2,0.372276]
[1739537823520,3.72248,2686.4,2685.9,9.29578486]
[1739537823717,3.72248,2686.4,2686.0,3.723]
[1739537823917,3.72217,2686.6,2686.0,3.723]
[1739537824089,3.72231,2686.5,2686.0,3.723]
[1739537825221,9.04212,2686.7,2686.1,3.72286]
[1739537825394,3.72218,2686.6,2686.3,0.7818]
[1739537825991,3.72235,2686.5,2686.3,0.7818]
[1739537827532,9.04206,2686.7,2686.3,0.7818]
[1739537828116,5.32,2686.7,2686.4,3.72237]
[1739537828433,5.32,2686.7,2686.5,0.822673]
[1739537828735,5.32,2687.0,2686.6,4.50393]
[1739537829322,9.04163,2687.0,2686.6,4.50393]
[1739537829531,5.32,2687.0,2686.6,8.22603]
[1739537829719,5.32,2687.0,2686.7,0.9048703]
[1739537829949,5.32,2687.0,2686.6,4.50395]
[1739537830654,5.32,2687.0,2686.6,5.2574734]
[1739537831274,9.0415,2687.1,2686.6,5.2574234]
[1739537832722,5.32,2687.1,2686.7,3.72203]
[1739537833299,9.0415,2687.1,2686.7,3.72203]
[1739537833499,9.0415,2687.1,2686.7,4.61999334]
[1739537835163,9.0415,2687.1,2686.7,0.89796334]
[1739537835464,3.72164,2687.0,2686.7,0.89796334]
[1739537837071,5.32,2687.1,2686.7,0.89796334]
[1739537837228,9.04149,2687.1,2686.7,0.89796334]
[1739537837432,9.04149,2687.1,2686.8,0.61553967]
[1739537837729,3.72165,2687.0,2686.8,0.61553967]
[1739537838062,9.04149,2687.1,2686.7,0.89796334]
[1739537838267,9.04149,2687.1,2685.6,0.7818]
[1739537838268,3.56827212,2686.8,2685.6,0.7818]
[1739537838404,4.47285,2686.7,2686.0,0.7818]
[1739537838739,4.47285,2686.7,2686.1,3.72275]
[1739537839316,8.195,2686.7,2686.1,7.44554]
[1739537839455,8.19499,2686.7,2686.2,0.89852087]
[1739537840103,3.7223,2686.6,2686.2,0.89852087]
[1739537840309,3.72241,2686.5,2686.2,0.89852087]
[1739537840478,3.72241,2686.5,2686.0,5.26263869]
[1739537841790,3.72241,2686.5,2686.1,3.72286]
[1739537842511,5.32,2686.8,2686.6,3.72204]
[1739537842718,5.32,2686.8,2686.7,3.72203]
[1739537842888,5.32,2686.8,2686.7,0.802]
[1739537843086,5.32,2686.8,2686.7,1.254404]
[1739537844086,5.32,2686.8,2686.7,0.802]
[1739537844301,5.32,2686.8,2686.4,3.72235]
[1739537844611,5.32,2686.8,2686.3,3.802]
[1739537844612,9.04196,2686.8,2686.3,3.802]
[1739537844815,9.04196,2686.8,2686.2,3.72263]
[1739537844816,3.72203,2686.7,2686.2,0.269]
[1739537844971,5.32,2686.8,2686.3,0.812]
[1739537845171,5.32,2686.8,2686.5,3.72218]
[1739537845413,5.32,2686.8,2686.5,4.53431]
[1739537845720,5.32,2686.8,2686.6,4.53406]
[1739537846015,5.32,2686.8,2686.7,3.72203]
[1739537846317,5.32,2686.8,2686.7,4.547639]
[1739537846620,5.32,2686.8,2686.7,5.359639]
[1739537846819,5.32,2686.8,2686.7,4.53403]
[1739537847601,5.32,2686.8,2686.7,0.812]
[1739537849194,5.32,2686.8,2686.7,5.26628794]
[1739537850109,5.32,2686.8,2686.7,1.54425794]
[1739537850307,5.32,2686.8,2686.7,2.44310073]
[1739537850481,5.32,2686.8,2686.7,5.26628794]
[1739537850813,3.72151,2687.1,2686.7,5.26628794]
[1739537851220,3.72124,2687.3,2686.7,5.26628794]
[1739537851680,3.72149,2687.1,2686.7,5.26628794]
[1739537852124,3.72124,2687.3,2686.7,5.26628794]
[1739537852415,3.72124,2687.3,2686.8,0.52662879]
[1739537852620,3.72136,2687.2,2686.8,0.52662879]
[1739537854529,3.72124,2687.3,2686.8,0.52662879]
[1739537854685,5.32,2687.4,2686.8,0.52662879]
[1739537854686,3.7215,2687.1,2686.8,0.52662879]
[1739537855023,3.7215,2687.1,2686.7,1.54425794]
[1739537857411,4.5431,2687.1,2686.7,1.54425794]
[1739537860233,3.7218,2686.9,2686.7,0.73225794]
[1739537860440,3.72184,2686.9,2686.7,0.73225794]
[1739537863640,3.72189,2686.8,2686.7,0.73225794]
[1739537864604,1.276367,2686.8,2686.3,0.8254]
[1739537864917,5.32,2687.0,2686.1,1.0944]
[1739537864918,3.72254,2686.4,2686.1,1.0944]
[1739537865118,0.8216,2686.5,2686.1,1.85340422]
[1739537865333,0.8216,2686.5,2686.1,1.02800422]
[1739537865631,3.72245,2686.4,2686.1,1.02800422]
[1739537865848,3.72267,2686.3,2686.1,1.02800422]
[1739537866230,3.72245,2686.4,2686.1,1.02800422]
[1739537866744,0.8216,2686.5,2686.1,1.02800422]
[1739537866899,0.8216,2686.5,2686.1,5.89860264]
[1739537867393,4.54391,2686.5,2686.1,5.89860264]
[1739537867593,0.8216,2686.5,2686.1,5.89860264]
[1739537867795,4.54393,2686.5,2686.1,2.17574264]
[1739537867994,0.8216,2686.5,2686.1,2.17574264]
[1739537868300,0.8216,2686.5,2686.1,5.89859264]
[1739537869795,4.54393,2686.5,2686.1,5.89859264]
[1739537870215,4.54393,2686.5,2686.1,2.17574264]
[1739537870410,3.72245,2686.4,2686.1,1.02800422]
[1739537870629,4.54393,2686.5,2686.1,1.02800422]
[1739537870948,4.54393,2686.5,2686.1,4.75086422]
[1739537871447,4.54393,2686.5,2686.1,1.02800422]
[1739537871632,4.54393,2686.5,2686.1,4.75085422]
[1739537872254,0.8216,2686.5,2686.1,4.75085422]
[1739537872461,3.72224,2686.6,2686.1,5.68071164]
[1739537873398,3.72224,2686.6,2686.2,0.7947]
[1739537873604,9.04213,2686.7,2686.2,4.51741]
[1739537874448,9.04213,2686.7,2686.2,0.7947]
[1739537874601,9.04213,2686.7,2686.2,1.44225316]
[1739537874797,3.72234,2686.5,2686.2,1.44225316]
[1739537875354,9.04212,2686.7,2686.2,5.16497316]
[1739537875558,3.72225,2686.6,2686.2,1.44225316]
[1739537877498,3.72225,2686.6,2686.2,5.16498316]
[1739537880751,5.32,2686.7,2686.3,0.61929874]
[1739537881056,9.04204,2686.7,2686.3,0.61929874]
[1739537881261,9.04211,2686.7,2686.2,4.51734]
[1739537881606,9.04211,2686.7,2686.2,8.23998]
[1739537881801,5.32,2686.7,2686.4,3.72236]
[1739537882123,5.32,2686.7,2686.5,0.7947]
[1739537882320,5.32,2686.7,2686.5,4.51688]
[1739537882523,5.32,2686.7,2686.6,4.546094]
[1739537883159,5.32,2686.7,2686.6,0.823924]
[1739537883308,5.32,2686.7,2686.5,0.7947]
[1739537883508,5.32,2686.7,2686.5,4.51701]
[1739537883928,5.32,2686.7,2686.6,3.72217]
[1739537884422,5.32,2686.7,2686.5,0.7947]
[1739537884625,5.32,2686.7,2686.5,4.51698]
[1739537884826,5.32,2686.7,2686.6,4.546104]
[1739537885160,5.32,2686.7,2686.6,0.823934]
[1739537886224,3.7223,2686.6,2686.2,0.7947]
[1739537887910,9.80064,2686.7,2686.3,3.72258]
[1739537888262,5.32,2686.7,2686.3,3.72258]
[1739537888563,9.04203,2686.7,2686.3,3.72258]
[1739537888765,5.32,2686.7,2686.3,7.44506]
[1739537888905,5.32,2686.7,2686.3,4.64925642]
[1739537889463,9.04205,2686.7,2686.3,4.64925642]
[1739537889800,5.32,2686.7,2686.3,4.64925642]